[Event "13th Poti Nana Aleksandria Cup"]
[Site "Poti"]
[Date "2018.07.17"]
[Round "6"]
[White "Mgeladze, Tamaz"]
[Black "Gharagyozyan, Artur"]
[Result "0-1"]
[ECO "A15"]
[WhiteElo "2374"]
[BlackElo "2302"]
[Annotator "NA"]
[PlyCount "115"]
[EventDate "2018.07.13"]
[EventType "swiss"]
[EventCountry "GEO"]
[SourceTitle "playchess.com"]
[Source "ChessBase"]
[SourceQuality "1"]
[TimeControl "40/5400+30:1800+30"]

{[%evp 14,114,45,32767,47,29,33,32767,52,32767,24,26,31,21,32767,22,14,7,23,9,19,16,63,32767,32767,32767,32767,32767,32767,32767,32767,0,0,-18,0,-35,-5,32767,32767,32767,32767,32767,-16,-144,32767,-135,-141,32767,32767,32767,32767,32767,-217,-210,-210,-245,-153,-166,-172,-176,32767,-154,-180,-179,32767,32767,32767,-189,-152,-252,-354,-411,-343,-347,-500,-656,-612,-495,-543,-593,-1014,-807,32767,-1003,32767,-736,32767,32767,-1587,32767,32767,32767,32767,32767,32767,32767,-1337,32767,-12843,-4614,-29975,-29974,-29983]} 1. c4 {[%emt 0:00:00]} Nf6 {[%emt 0:05:21]} 2. g3 {[%emt 0:01:09]} e5 {[%emt 0:01:19]} 3. Bg2 {[%emt 0:00:20]} Nc6 {[%emt 0:01:13]} 4. Nf3 {[%emt 0:02:12]} d5 {[%emt 0:01:29]} 5. cxd5 {[%emt 0:00:11]} Nxd5 {[%emt 0:00:07]} 6. Nc3 {[%emt 0:02:01]} Be6 {[%emt 0:02:11]} 7. O-O {[%emt 0:00:49]} Be7 {[%emt 0:00:10]} 8. d4 {[%emt 0:03:05]} exd4 {[%emt 0:09:24]} 9. Nxd4 {[%emt 0:00:21]} Nxc3 {[%emt 0:00:07] A29: English Opening: Four Knights Variation with 4 g3} 10. bxc3 {[%emt 0:00:35]} Nxd4 {[%emt 0:00:14]} 11. cxd4 {[%emt 0:00:46]} c6 $1 {[%emt 0:00:26]} 12. e4 {[%emt 0:14:49]} O-O {[%emt 0:01:15] LiveBook: 3 Games} (12... Bc4 13. Re1 O-O 14. Bb2 Qb6 15. Qc2 Qa6 16. d5 cxd5 17. exd5 {1-0 (54) Lagno,K (2543)-Golubenko,V (2271) Riga 2017}) 13. Bb2 {[%emt 0:03:37]} Qd7 {[%emt 0:02:33]} 14. d5 {[%emt 0:05:21]} cxd5 {[%emt 0:04:53]} 15. exd5 {[%emt 0:00:03]} Bg4 {[%emt 0:01:55]} 16. Qb3 $146 {[%emt 0:04:13]} ({Predecessor:} 16. Qd2 f5 17. f4 {1-0 (42) Clarke,P-Mohsen,T Leipzig 1960}) 16... Rac8 {[%emt 0:02:39]} 17. Rac1 {[%emt 0:04:41]} Bd6 {[%emt 0:00:49]} (17... Rfe8 $11) 18. Qe3 {[%emt 0:03:17]} b6 {[%emt 0:04:43]} 19. Rc6 {[%emt 0:04:45]} Rfe8 {[%emt 0:01:14]} 20. Qg5 {[%emt 0:05:28]} Bf8 {[%emt 0:05:25]} 21. Rfc1 {[%emt 0:07:32]} h6 {[%emt 0:06:47]} 22. Qf4 {[%emt 0:04:59]} Qf5 {[%emt 0:00:46]} 23. Qd4 {[%emt 0:10:30]} Rcd8 {[%emt 0:06:13]} 24. d6 {[%emt 0:07:12]} Bf3 {[%emt 0:11:23]} 25. Bxf3 {[%emt 0:00:22]} Qxf3 {[%emt 0:00:01]} 26. d7 {[%emt 0:00:15]} Re4 {[%emt 0:05:31]} 27. Qc3 {[%emt 0:04:01]} Qxc3 {[%emt 0:02:17]} 28. Bxc3 {[%emt 0:00:02]} (28. R1xc3 $15 Rd4 29. Rc7) 28... Rxd7 {[%emt 0:00:17]} 29. Rc8 {[%emt 0:00:03]} f6 {[%emt 0:00:39]} 30. Re1 {[%emt 0:05:15]} Rxe1+ {[%emt 0:00:03]} 31. Bxe1 {[%emt 0:00:04]} Rd1 {[%emt 0:00:04]} 32. Kf1 {[%emt 0:00:06]} Ra1 {[%emt 0:00:12]} 33. a3 {[%emt 0:00:26]} Kf7 {[%emt 0:00:51]} ({Weaker is} 33... Rxa3 34. Bb4 $16) 34. Ke2 {[%emt 0:00:28]} a5 {[%emt 0:02:33]} ({Much less strong is} 34... Bxa3 35. Rc7+ Kg6 36. Rxa7 $17) ({Worse is} 34... Rxa3 {[#]} 35. Rxf8+ $1 {[%mdl 512]} Kxf8 36. Bb4+ Ke8 37. Bxa3 $16) 35. Rc6 {[%emt 0:01:40]} Ra2+ {[%emt 0:00:14]} 36. Kd1 {[%emt 0:00:28]} Bc5 {[%emt 0:02:28]} 37. Bxa5 {[%emt 0:00:10]} Rxf2 {[%emt 0:00:32]} 38. Bxb6 {[%emt 0:04:03]} Bxb6 {[%emt 0:00:11]} 39. Rxb6 {[%emt 0:00:02]} Rxh2 {[%emt 0:00:07]} 40. Rb7+ {[%emt 0:00:00]} Kg6 {[%emt 0:00:00]} 41. Kc1 {[%emt 0:00:29]} h5 {[%emt 0:02:11]} 42. Rb3 {[%emt 0:01:15]} h4 {[%emt 0:01:30]} 43. gxh4 {[%emt 0:00:24]} Rxh4 {[%emt 0:00:04]} 44. Rg3+ {[%emt 0:00:04]} Kf7 {[%emt 0:00:08]} 45. Kb2 {[%emt 0:00:02]} g5 {[%emt 0:00:13]} 46. Kb3 {[%emt 0:00:04]} Kg6 {[%emt 0:00:05]} 47. a4 {[%emt 0:00:05]} g4 {[%emt 0:00:09]} 48. Kc4 {[%emt 0:00:18]} Kg5 {[%emt 0:00:14]} 49. a5 {[%emt 0:00:20]} Kf4 {[%emt 0:00:40]} 50. Rg1 {[%emt 0:01:14]} g3 {[%emt 0:00:11]} 51. a6 {[%emt 0:00:10]} Kf3+ {[%emt 0:00:06]} 52. Kb5 {[%emt 0:00:49]} f5 {[%emt 0:00:37]} 53. Rb1 {[%emt 0:03:39]} f4 {[%emt 0:02:00]} 54. Kc4 {[%emt 0:00:26]} Rh6 {[%emt 0:01:17]} 55. Ra1 {[%emt 0:00:34]} g2 {[%emt 0:00:30]} 56. a7 {[%emt 0:00:27]} Rh8 {[%emt 0:00:06]} 57. Rb1 {[%emt 0:00:12]} Ra8 {[%emt 0:00:09]} 58. Kd4 0-1

[Event "13th Poti Nana Aleksandria Cup"]
[Site "Poti"]
[Date "2018.07.17"]
[Round "6"]
[White "Chkhaidze, Nikoloz"]
[Black "Gordon, Evgeny"]
[Result "1-0"]
[ECO "D06"]
[WhiteElo "2337"]
[BlackElo "2016"]
[Annotator "ChessBase"]
[PlyCount "85"]
[EventDate "2018.07.13"]
[EventType "swiss"]
[EventCountry "GEO"]
[SourceTitle "playchess.com"]
[Source "ChessBase"]
[SourceQuality "1"]
[TimeControl "40/5400+30:1800+30"]

1. d4 {[%emt 0:00:00]} d5 {[%emt 0:00:00]} 2. c4 {[%emt 0:00:00]} c5 {[%emt 0:00:06]} 3. cxd5 {[%emt 0:00:00]} Qxd5 {[%emt 0:00:44]} 4. Nf3 {[%emt 0:00:00]} cxd4 {[%emt 0:00:45]} 5. Nc3 {[%emt 0:00:00]} Qa5 {[%emt 0:00:20]} 6. Nxd4 {[%emt 0:00:00]} Nf6 {[%emt 0:02:05]} 7. g3 {[%emt 0:00:04]} e5 {[%emt 0:02:30]} 8. Nb3 {[%emt 0:00:08]} Qb6 {[%emt 0:01:14]} 9. Bg2 {[%emt 0:00:05]} Bb4 {[%emt 0:00:32]} 10. O-O {[%emt 0:00:13]} a6 {[%emt 0:09:54]} 11. Be3 {[%emt 0:00:08]} Qc7 {[%emt 0:00:44]} 12. Na4 {[%emt 0:00:30]} Nc6 {[%emt 0:04:59]} 13. a3 {[%emt 0:00:49]} Be7 {[%emt 0:00:41]} 14. Rc1 {[%emt 0:05:40]} O-O {[%emt 0:09:39]} 15. Qc2 {[%emt 0:05:20]} Be6 {[%emt 0:05:50]} 16. Bb6 {[%emt 0:03:52]} Qb8 {[%emt 0:06:52]} 17. Rfd1 {[%emt 0:03:18]} e4 {[%emt 0:02:48]} 18. Nbc5 {[%emt 0:03:11]} Bf5 {[%emt 0:00:35]} 19. Nxe4 {[%emt 0:01:08]} Nxe4 {[%emt 0:02:05]} 20. Bxe4 {[%emt 0:00:04]} Bxe4 {[%emt 0:00:35]} 21. Qxe4 {[%emt 0:00:03]} Qe8 {[%emt 0:13:51]} 22. Nc3 {[%emt 0:04:38]} Bf6 {[%emt 0:02:57]} 23. Qxe8 {[%emt 0:06:09]} Rfxe8 {[%emt 0:00:12]} 24. e3 {[%emt 0:00:09]} Rac8 {[%emt 0:09:57]} 25. Kg2 {[%emt 0:02:46]} h5 {[%emt 0:01:04]} 26. h3 {[%emt 0:09:54]} Re6 {[%emt 0:03:43]} 27. Na4 {[%emt 0:01:32]} Ne7 {[%emt 0:04:48]} 28. Rxc8+ {[%emt 0:01:41]} Nxc8 {[%emt 0:00:01]} 29. Bd4 {[%emt 0:00:19]} Bxd4 {[%emt 0:03:38]} 30. Rxd4 {[%emt 0:00:05]} Rc6 {[%emt 0:00:11]} 31. Nc3 {[%emt 0:00:09]} b5 {[%emt 0:01:01]} 32. Nd5 {[%emt 0:00:35]} Kh7 {[%emt 0:04:39]} 33. Nb4 {[%emt 0:00:52]} Rb6 {[%emt 0:00:26]} 34. Rd8 {[%emt 0:04:53]} Nd6 {[%emt 0:00:27]} 35. Ra8 {[%emt 0:00:11]} Nc4 {[%emt 0:00:25]} 36. Rxa6 {[%emt 0:00:06]} Rxa6 {[%emt 0:01:07]} 37. Nxa6 {[%emt 0:00:04]} Nxb2 {[%emt 0:00:11]} 38. Nc7 {[%emt 0:00:05]} Nc4 {[%emt 0:00:29]} 39. Nxb5 {[%emt 0:00:07]} Kg6 {[%emt 0:00:38]} 40. a4 {[%emt 0:00:00]} Kf5 {[%emt 0:00:00]} 41. Kf3 {[%emt 0:02:17]} Nd2+ {[%emt 0:00:34]} 42. Ke2 {[%emt 0:00:13]} Nb3 {[%emt 0:00:08]} 43. Nd4+ {[%emt 0:00:43]} 1-0

[Event "13th Poti Nana Aleksandria Cup"]
[Site "Poti"]
[Date "2018.07.17"]
[Round "6"]
[White "Mammadov, Sadig"]
[Black "Tsotsonava, Elene"]
[Result "1/2-1/2"]
[ECO "B33"]
[WhiteElo "2312"]
[BlackElo "1647"]
[Annotator "NA"]
[PlyCount "67"]
[EventDate "2018.07.13"]
[EventType "swiss"]
[EventCountry "GEO"]
[SourceTitle "playchess.com"]
[Source "ChessBase"]
[SourceQuality "1"]
[TimeControl "40/5400+30:1800+30"]

1. e4 {[%emt 0:01:23]} c5 {[%emt 0:00:00]} 2. Nf3 {[%emt 0:00:02]} Nc6 {[%emt 0:00:00]} 3. d4 {[%emt 0:00:05]} cxd4 {[%emt 0:00:00]} 4. Nxd4 {[%emt 0:00:03]} Nf6 {[%emt 0:00:00]} 5. Nc3 {[%emt 0:00:05]} e5 {[%emt 0:00:00]} 6. Ndb5 {[%emt 0:00:04]} d6 {[%emt 0:00:00]} 7. Bg5 {[%emt 0:00:06]} a6 {[%emt 0:00:02]} 8. Na3 {[%emt 0:00:01]} b5 {[%emt 0:00:05]} 9. Nd5 {[%emt 0:00:09]} Be7 {[%emt 0:00:06]} 10. Bxf6 {[%emt 0:00:04]} Bxf6 {[%emt 0:00:05]} 11. c3 {[%emt 0:00:07]} O-O {[%emt 0:00:04]} 12. Nc2 {[%emt 0:00:03]} Bg5 {[%emt 0:00:06]} 13. a4 {[%emt 0:00:06]} bxa4 {[%emt 0:00:05]} 14. Rxa4 {[%emt 0:00:01]} a5 {[%emt 0:00:06]} 15. Bc4 {[%emt 0:00:36]} Rb8 {[%emt 0:01:15]} 16. b3 {[%emt 0:00:27]} Kh8 {[%emt 0:00:08]} 17. O-O {[%emt 0:03:45]} f5 {[%emt 0:00:47]} 18. exf5 {[%emt 0:00:29]} Bxf5 {[%emt 0:00:05]} 19. Nce3 {[%emt 0:00:20]} Bg6 {[%emt 0:03:22]} 20. Qe2 {[%emt 0:05:04] B33: Sicilian: Pelikan and Sveshnikov Variations} (20. Bd3 Bxd3 21. Qxd3 Bxe3 22. fxe3 Rxf1+ 23. Qxf1 Rxb3 24. Rc4 Rb5 25. Nc7 Rb6 26. Nd5 Rb5 27. e4 Rc5 28. Rxc5 dxc5 {½-½ (41) Kasimdzhanov,R (2696)-Gelfand,B (2751) Tashkent 2012 CBM 152 [Marin,M]}) 20... Qd7 {[%emt 0:02:32]} 21. Rfa1 {[%emt 0:04:46]} e4 {[%emt 0:01:27]} 22. Bb5 $146 {[%emt 0:16:29]} ({Predecessor:} 22. R1a2 Bd8 23. Qd1 Ne5 24. Bf1 Qb7 25. b4 Nd3 26. Bxd3 exd3 27. bxa5 Qb1 {1-0 (36) Varga,D (2304)-Kimerling,M (2072) Banska Stiavnica 2012}) 22... Nd4 {[%emt 0:11:21]} 23. Rxd4 {[%emt 0:01:18]} Qxb5 {[%emt 0:03:09]} 24. Nc4 {[%emt 0:06:47]} Qxb3 {[%emt 0:04:26]} 25. Ra3 {[%emt 0:01:21]} Qb7 {[%emt 0:21:54]} 26. Rxa5 {[%emt 0:19:11]} Ra8 {[%emt 0:01:26]} 27. Rd1 {[%emt 0:05:39]} ({Better is} 27. Rxa8 $14 Qxa8 28. Nxd6) 27... Rxa5 {[%emt 0:04:50]} 28. Nxa5 {[%emt 0:00:01]} Qf7 {[%emt 0:00:36]} 29. Qe1 {[%emt 0:07:12]} Bh5 {[%emt 0:10:22]} 30. Rd4 {[%emt 0:00:09]} Bh4 {[%emt 0:00:21]} 31. Rd2 {[%emt 0:01:48]} Bg5 {[%emt 0:00:50]} 32. Rd4 $11 {[%emt 0:01:53]} Bh4 {[%emt 0:01:36]} 33. Rd2 {[%emt 0:00:01]} Bg5 {[%emt 0:11:51]} 34. Rd4 {[%emt 0:00:21]} 1/2-1/2

[Event "13th Poti Nana Aleksandria Cup"]
[Site "Poti"]
[Date "2018.07.17"]
[Round "6"]
[White "Matsenko, Andrei"]
[Black "Mesropian, Khachatur"]
[Result "1-0"]
[ECO "B33"]
[WhiteElo "2299"]
[BlackElo "2128"]
[Annotator "ChessBase"]
[PlyCount "102"]
[EventDate "2018.07.13"]
[EventType "swiss"]
[EventCountry "GEO"]
[SourceTitle "playchess.com"]
[Source "ChessBase"]
[SourceQuality "1"]
[TimeControl "40/5400+30:1800+30"]

1. e4 {[%emt 0:00:00]} c5 {[%emt 0:00:00]} 2. Nf3 {[%emt 0:00:00]} Nc6 {[%emt 0:00:00]} 3. d4 {[%emt 0:00:00]} cxd4 {[%emt 0:00:00]} 4. Nxd4 {[%emt 0:00:00]} Nf6 {[%emt 0:00:08]} 5. Nc3 {[%emt 0:00:00]} e5 {[%emt 0:00:01]} 6. Ndb5 {[%emt 0:00:02]} d6 {[%emt 0:00:07]} 7. Bg5 {[%emt 0:00:04]} a6 {[%emt 0:00:06]} 8. Na3 {[%emt 0:00:03]} b5 {[%emt 0:00:01]} 9. Nd5 {[%emt 0:00:07]} Be7 {[%emt 0:00:07]} 10. Bxf6 {[%emt 0:00:04]} Bxf6 {[%emt 0:00:10]} 11. c4 {[%emt 0:00:03]} b4 {[%emt 0:00:19]} 12. Nc2 {[%emt 0:00:04]} a5 {[%emt 0:00:13]} 13. g3 {[%emt 0:00:03]} O-O {[%emt 0:02:30]} 14. Bg2 {[%emt 0:00:12]} Bg5 {[%emt 0:02:31]} 15. O-O {[%emt 0:00:27]} Ne7 {[%emt 0:04:02]} 16. Nde3 {[%emt 0:01:14]} Bb7 {[%emt 0:03:10]} 17. Qd3 {[%emt 0:00:47]} Qb6 {[%emt 0:02:11]} 18. Rad1 {[%emt 0:01:20]} Rad8 {[%emt 0:01:09]} 19. h4 {[%emt 0:02:54]} Bxe3 {[%emt 0:01:19]} 20. Nxe3 {[%emt 0:00:05]} g6 {[%emt 0:02:53]} 21. Rd2 {[%emt 0:04:28]} f5 {[%emt 0:03:36]} 22. exf5 {[%emt 0:01:32]} Bxg2 {[%emt 0:01:08]} 23. Kxg2 {[%emt 0:00:35]} gxf5 {[%emt 0:01:55]} 24. Nd5 {[%emt 0:00:21]} Qb7 {[%emt 0:01:16]} 25. Qf3 {[%emt 0:01:45]} Kh8 {[%emt 0:01:07]} 26. Rfd1 {[%emt 0:08:52]} f4 {[%emt 0:03:43]} 27. g4 {[%emt 0:06:49]} Nc6 {[%emt 0:05:46]} 28. g5 {[%emt 0:02:41]} Qg7 {[%emt 0:03:06]} 29. Nf6 {[%emt 0:05:57]} Nd4 {[%emt 0:02:23]} 30. Rxd4 {[%emt 0:00:07]} exd4 {[%emt 0:17:33]} 31. Qxf4 {[%emt 0:02:12]} d5 {[%emt 0:01:52]} 32. Qxd4 {[%emt 0:00:47]} Rd6 {[%emt 0:02:49]} 33. Kf1 {[%emt 0:01:40]} Rfxf6 {[%emt 0:09:16]} 34. gxf6 {[%emt 0:00:05]} Qf7 {[%emt 0:02:03]} 35. cxd5 {[%emt 0:00:10]} Kg8 {[%emt 0:02:04]} 36. Qg4+ {[%emt 0:00:12]} Kf8 {[%emt 0:00:48]} 37. Rc1 {[%emt 0:03:47]} Qxf6 {[%emt 0:03:00]} 38. Rc8+ {[%emt 0:01:01]} Rd8 {[%emt 0:01:54]} 39. Qe6 {[%emt 0:00:39]} Qxh4 {[%emt 0:01:01]} 40. Qd6+ {[%emt 0:00:00]} Ke8 {[%emt 0:00:00]} 41. Qxd8+ {[%emt 0:00:11]} Qxd8 {[%emt 0:03:32]} 42. Rxd8+ {[%emt 0:00:02]} Kxd8 {[%emt 0:00:01]} 43. f4 {[%emt 0:00:13]} a4 {[%emt 0:02:29]} 44. f5 {[%emt 0:00:07]} Ke7 {[%emt 0:00:24]} 45. a3 {[%emt 0:00:28]} b3 {[%emt 0:01:03]} 46. Kg2 {[%emt 0:00:03]} Ke8 {[%emt 0:03:37]} 47. Kh3 {[%emt 0:00:05]} Ke7 {[%emt 0:00:16]} 48. Kh4 {[%emt 0:00:05]} Ke8 {[%emt 0:03:16]} 49. Kh5 {[%emt 0:00:05]} Ke7 {[%emt 0:00:12]} 50. Kh6 {[%emt 0:00:04]} Kd6 {[%emt 0:00:02]} 51. f6 {[%emt 0:00:05]} Kxd5 {[%emt 0:00:39]} 1-0

[Event "13th Poti Nana Aleksandria Cup"]
[Site "Poti"]
[Date "2018.07.17"]
[Round "6"]
[White "Matevosyan, Sedrak"]
[Black "Yeritsyan, Hayk"]
[Result "1/2-1/2"]
[ECO "E97"]
[WhiteElo "2161"]
[BlackElo "2178"]
[Annotator "NA"]
[PlyCount "143"]
[EventDate "2018.07.13"]
[EventType "swiss"]
[EventCountry "GEO"]
[SourceTitle "playchess.com"]
[Source "ChessBase"]
[SourceQuality "1"]
[TimeControl "40/5400+30:1800+30"]

1. Nf3 {[%emt 0:00:00]} Nf6 {[%emt 0:00:00]} 2. c4 {[%emt 0:00:00]} g6 {[%emt 0:00:18]} 3. Nc3 {[%emt 0:00:00]} Bg7 {[%emt 0:00:06]} 4. d4 {[%emt 0:00:26]} O-O {[%emt 0:00:09] LiveBook: 11846 Partien} 5. e4 {[%emt 0:00:06]} d6 6. Be2 {[%emt 0:00:07]} e5 {[%emt 0:00:13]} 7. O-O {[%emt 0:00:13]} Nc6 {[%emt 0:00:05]} 8. d5 {[%emt 0:00:08]} Ne7 {[%emt 0:00:06]} 9. a4 {[%emt 0:00:48]} a5 {[%emt 0:00:24]} 10. Ne1 {[%emt 0:00:19]} Nd7 {[%emt 0:03:05]} 11. Nd3 {[%emt 0:00:54]} f5 {[%emt 0:00:24]} 12. f3 {[%emt 0:00:10]} c5 {[%emt 0:11:32] E97: Königsindisch (Klassisches System)} 13. f4 {[%emt 0:23:31]} exf4 {[%emt 0:13:28]} 14. Nxf4 {[%emt 0:04:31] [#]} Nf6 $146 {[%emt 0:02:47]} ({Vorgänger:} 14... Bxc3 15. bxc3 Ne5 16. Nd3 Nf7 17. Bf3 fxe4 18. Bxe4 Bf5 19. Bxf5 Nxf5 20. Nf4 {½-½ (45) Can,E (2542)-Granda Zuniga,J (2685) Sitges 2015}) 15. exf5 {[%emt 0:11:18]} Nxf5 {[%emt 0:01:51]} 16. Nb5 {[%emt 0:02:58]} Re8 {[%emt 0:12:25]} 17. Ra3 {[%emt 0:00:22]} Ne4 {[%emt 0:03:06]} 18. Bg4 {[%emt 0:10:44]} Be5 {[%emt 0:14:29] [#]} ({Black should play} 18... Re5 $1 $14) 19. Ne6 $1 {[%emt 0:06:26]} Bxe6 {[%emt 0:01:15]} 20. dxe6 {[%emt 0:00:07]} Nd4 {[%emt 0:00:45] [#]} 21. Nxd4 $1 {[%emt 0:10:46]} cxd4 {[%emt 0:05:24]} (21... Bxd4+ $142 22. Be3 Be5) 22. Qf3 {[%emt 0:06:25]} Nf6 {[%emt 0:03:35]} 23. Bg5 {[%emt 0:02:23]} Rf8 {[%emt 0:00:08]} 24. Bh3 {[%emt 0:06:55]} Qc7 {[%emt 0:01:46]} 25. g3 {[%emt 0:05:08]} Kg7 {[%emt 0:07:27]} 26. Rb3 {[%emt 0:03:47]} Rab8 {[%emt 0:00:28]} 27. Qe2 {[%emt 0:01:00]} h6 {[%emt 0:02:26]} 28. Bc1 {[%emt 0:00:47]} Ng8 {[%emt 0:01:47]} 29. Rbf3 {[%emt 0:00:42]} Rxf3 {[%emt 0:00:06]} 30. Qxf3 {[%emt 0:00:15]} Bf6 {[%emt 0:01:48]} (30... Nf6 $142) 31. b3 {[%emt 0:00:30]} Rf8 {[%emt 0:00:36]} 32. Bb2 {[%emt 0:01:15]} Ne7 {[%emt 0:00:15]} 33. Qe4 {[%emt 0:01:12]} Nc6 {[%emt 0:00:17]} 34. Rd1 {[%emt 0:00:38]} (34. Ba3 $14) 34... Be5 {[%emt 0:01:18]} (34... Qb6 $11 35. Rd3 Qc5) 35. Bc1 {[%emt 0:01:13]} Qe7 {[%emt 0:01:01]} 36. Bd2 {[%emt 0:00:33]} Rf6 {[%emt 0:06:18]} 37. Qh4 {[%emt 0:00:39]} g5 {[%emt 0:00:03]} 38. Qg4 {[%emt 0:00:14]} Nd8 {[%emt 0:01:05]} 39. Bxa5 {[%emt 0:01:04]} Nxe6 {[%emt 0:00:05]} 40. Bg2 {[%emt 0:00:00]} Nc5 {[%emt 0:00:00]} 41. h4 {[%emt 0:09:08]} Qe6 {[%emt 0:15:01]} 42. Qxe6 {[%emt 0:05:09]} Rxe6 {[%emt 0:00:04]} 43. Bb6 {[%emt 0:02:37]} Bxg3 {[%emt 0:04:45]} 44. b4 {[%emt 0:03:22]} Nxa4 {[%emt 0:00:05]} 45. Bxd4+ {[%emt 0:00:06]} Be5 {[%emt 0:00:46]} 46. Bxb7 {[%emt 0:01:48]} Nc3 {[%emt 0:00:52]} 47. Bxe5+ {[%emt 0:00:16]} dxe5 {[%emt 0:00:15]} 48. Rd7+ {[%emt 0:00:11]} Kf6 {[%emt 0:00:19]} 49. hxg5+ {[%emt 0:00:38]} Kxg5 {[%emt 0:00:08] [#]} 50. Rd3 {[%emt 0:05:23]} (50. c5 $1 $16) 50... Ne2+ {[%emt 0:02:29]} 51. Kf2 {[%emt 0:00:10]} Nd4 {[%emt 0:00:12]} 52. c5 {[%emt 0:00:52]} (52. Rg3+ $16 Kh4 53. b5) 52... Kf4 {[%emt 0:00:52]} 53. Rh3 {[%emt 0:03:53]} Rf6 {[%emt 0:03:13]} 54. Rc3 {[%emt 0:01:19]} e4 {[%emt 0:01:11]} 55. c6 $11 {[%emt 0:01:37]} e3+ {[%emt 0:01:18]} 56. Rxe3 {[%emt 0:00:18]} Kg4+ {[%emt 0:00:16]} 57. Kg2 {[%emt 0:00:15]} Nxc6 {[%emt 0:00:11]} 58. Rg3+ {[%emt 0:02:25]} Kh4 {[%emt 0:00:13]} 59. Rh3+ {[%emt 0:00:27]} Kg5 {[%emt 0:00:17]} 60. Rg3+ {[%emt 0:00:08]} Kh4 {[%emt 0:00:05]} 61. Rc3 {[%emt 0:00:51]} Ne5 {[%emt 0:01:49]} 62. b5 {[%emt 0:00:58]} Kg4 {[%emt 0:00:31]} 63. Bc8+ {[%emt 0:00:20]} Kf4 {[%emt 0:00:22]} 64. Rb3 {[%emt 0:00:23]} Rb6 {[%emt 0:00:22]} 65. Rb4+ {[%emt 0:00:17]} Ke3 {[%emt 0:00:09]} 66. Bf5 {[%emt 0:00:32]} Kd2 {[%emt 0:00:34]} 67. Kg3 {[%emt 0:00:37]} Kc3 {[%emt 0:00:40]} 68. Rb1 {[%emt 0:00:05]} Nc4 {[%emt 0:00:21]} 69. Bd7 {[%emt 0:01:09]} Na3 {[%emt 0:00:25]} 70. Rc1+ {[%emt 0:00:21]} Kb4 {[%emt 0:00:43]} 71. Kf4 {[%emt 0:00:32]} Nxb5 {[%emt 0:00:14]} 72. Rb1+ {[%emt 0:00:12]} 1/2-1/2

[Event "13th Poti Nana Aleksandria Cup"]
[Site "Poti"]
[Date "2018.07.17"]
[Round "6"]
[White "Eynullayev, Altay"]
[Black "Pshmahov, Osman"]
[Result "1-0"]
[ECO "B06"]
[WhiteElo "2134"]
[BlackElo "2136"]
[Annotator "NA"]
[PlyCount "89"]
[EventDate "2018.07.13"]
[EventType "swiss"]
[EventCountry "GEO"]
[SourceTitle "playchess.com"]
[Source "ChessBase"]
[SourceQuality "1"]
[TimeControl "40/5400+30:1800+30"]

1. e4 {[%emt 0:00:00]} g6 {[%emt 0:00:08]} 2. d4 {[%emt 0:00:00]} Bg7 {[%emt 0:00:02]} 3. c4 {[%emt 0:00:14]} c5 {[%emt 0:01:04]} 4. d5 {[%emt 0:00:18]} d6 {[%emt 0:00:23]} 5. Nc3 {[%emt 0:00:13]} Nf6 {[%emt 0:02:19]} 6. Be2 {[%emt 0:00:09]} O-O {[%emt 0:03:04]} 7. Be3 {[%emt 0:00:14]} a6 {[%emt 0:00:30] E73: King's Indian: Averbakh Variation without 6...c5} (7... e6 8. Nf3 exd5 9. cxd5 Bg4 10. Nd2 Bxe2 11. Qxe2 Re8 12. f3 Nbd7 13. a4 Qb6 14. Nc4 Qa6 15. Nb5 Ne5 16. Nbxd6 Nxc4 17. Nxc4 Nxd5 18. exd5 {½-½ (61) Buhmann,R (2584)-Fedorov,A (2573) Katowice 2017}) 8. a4 {[%emt 0:01:30]} e6 {[%emt 0:01:21]} 9. Nf3 {[%emt 0:00:11]} exd5 {[%emt 0:00:25]} 10. cxd5 {[%emt 0:00:13]} Ng4 {[%emt 0:08:09]} 11. Bg5 {[%emt 0:02:23]} Qb6 {[%emt 0:01:08]} 12. Qc2 {[%emt 0:03:43]} f5 {[%emt 0:02:34]} 13. a5 $146 {[%emt 0:02:10]} ({Predecessor:} 13. Nd2 Ne5 14. f4 Nf7 15. Bh4 Re8 {0-1 (40) Sanson Hernandez,M-Rodriguez,O corr 1994}) 13... Qc7 {[%emt 0:02:28]} 14. exf5 {[%emt 0:10:18]} Bxf5 {[%emt 0:00:09]} 15. Qd2 {[%emt 0:00:41]} Nd7 {[%emt 0:01:35]} 16. O-O {[%emt 0:01:30]} b5 {[%emt 0:13:59]} (16... Nde5 $11 {hält das Gleichgewicht.}) 17. axb6 $1 {[%emt 0:00:42]} Nxb6 {[%emt 0:02:12]} 18. Bf4 {[%emt 0:08:36]} Nf6 {[%emt 0:17:25]} 19. Ng5 {[%emt 0:09:40]} Nh5 {[%emt 0:10:32]} 20. Be3 {[%emt 0:07:13]} Nf6 {[%emt 0:03:15]} 21. h3 {[%emt 0:05:25]} Qb7 {[%emt 0:06:35]} 22. Bf4 {[%emt 0:05:02]} Nc8 {[%emt 0:02:01]} 23. Bf3 {[%emt 0:03:29]} Rb8 {[%emt 0:01:02]} 24. Ra2 {[%emt 0:02:53]} Re8 {[%emt 0:00:36]} 25. Ne6 {[%emt 0:02:37]} Bxe6 {[%emt 0:00:31]} 26. dxe6 {[%emt 0:00:08]} Qb3 {[%emt 0:00:06]} 27. Re1 {[%emt 0:01:41]} Kh8 {[%emt 0:08:15]} 28. Qe2 {[%emt 0:12:52]} ({Don't take} 28. Bxd6 Nxd6 29. Qxd6 Rb6 $16) 28... Rb4 {[%emt 0:01:20]} (28... Ng8 $142 29. Bd5 (29. Rxa6 Qxb2 30. Nd5 Qxe2 $18) 29... Qb6) 29. Ra3 {[%emt 0:02:57]} Qxb2 {[%emt 0:01:00]} 30. Qxb2 {[%emt 0:00:04]} Rxb2 {[%emt 0:00:01]} 31. Bc6 $18 {[%emt 0:00:51]} ({But not} 31. Rxa6 $6 Nh5 $16) 31... Re7 {[%emt 0:05:31]} 32. Rxa6 {[%emt 0:00:19]} Nh5 {[%emt 0:01:48]} 33. Nd5 {[%emt 0:00:43]} Bd4 {[%emt 0:01:27]} 34. Be3 {[%emt 0:11:49]} Kg7 {[%emt 0:00:25]} 35. Ra8 {[%emt 0:01:05]} Nb6 {[%emt 0:01:58]} 36. Nxe7 {[%emt 0:00:11]} Nxa8 {[%emt 0:00:02]} 37. Bxa8 {[%emt 0:00:45]} Bxe3 {[%emt 0:01:06]} 38. Rxe3 {[%emt 0:00:10]} Rb8 {[%emt 0:00:26]} 39. Bc6 {[%emt 0:00:41]} Nf6 {[%emt 0:01:05]} 40. Nd5 {[%emt 0:00:00]} Nxd5 {[%emt 0:00:00]} 41. Bxd5 {[%emt 0:00:13]} Kf6 {[%emt 0:00:39]} 42. Kf1 {[%emt 0:01:53]} Ke7 {[%emt 0:00:18]} 43. Rf3 {[%emt 0:00:24]} Rc8 {[%emt 0:00:11]} 44. Rf7+ {[%emt 0:00:10]} Ke8 {[%emt 0:00:05]} 45. Rxh7 {[%emt 0:00:03]} 1-0